bitfinex/quotes_BTCUSD_20230906
["timestamp","ask_amount","ask_price","bid_price","bid_amount"]
[1694011142737,0.15832086,25628.0,25627.0,0.783426]
[1694011142953,0.15832086,25628.0,25627.0,0.003]
[1694011143363,0.93871686,25628.0,25627.0,0.003]
[1694011143777,0.15832086,25628.0,25627.0,0.783426]
[1694011143981,0.15832086,25628.0,25627.0,1.563852]
[1694011144604,0.15832086,25628.0,25627.0,0.003]
[1694011145029,5.12421979,25628.0,25627.0,0.003]
[1694011145239,4.91495337,25628.0,25627.0,0.003]
[1694011145483,4.90151337,25628.0,25627.0,0.003]
[1694011145709,4.90151337,25628.0,25620.0,0.0001]
[1694011145710,0.90216128,25621.0,25620.0,0.0001]
[1694011145924,2.64904971,25621.0,25620.0,0.0001]
[1694011146131,4.00108084,25621.0,25620.0,0.0001]
[1694011146345,3.41078851,25621.0,25620.0,0.0001]
[1694011146547,2.63017951,25621.0,25620.0,0.0001]
[1694011147422,2.50827951,25621.0,25620.0,0.0001]
[1694011147653,2.41581787,25621.0,25620.0,0.0001]
[1694011147865,0.27712824,25621.0,25620.0,0.0021]
[1694011148477,0.29112824,25621.0,25620.0,0.0031]
[1694011148684,0.29112824,25621.0,25620.0,1.56438]
[1694011148685,0.06027731,25621.0,25620.0,1.56438]
[1694011148890,0.06027731,25621.0,25620.0,2.34502]
[1694011149530,0.03711603,25621.0,25620.0,4.56750338]
[1694011149740,0.03711603,25621.0,25620.0,4.91368399]
[1694011149949,0.06211603,25621.0,25620.0,4.95457109]
[1694011150403,0.014,25621.0,25620.0,4.95257109]
[1694011150839,0.00216128,25625.0,25621.0,0.07783872]
[1694011151049,0.00216128,25625.0,25624.0,0.1219]
[1694011151261,0.00216128,25625.0,25624.0,1.682936]
[1694011151472,0.00216128,25625.0,25624.0,2.463454]
[1694011152153,0.00216128,25625.0,25624.0,0.780518]
[1694011152361,0.00216128,25625.0,25623.0,0.902431]
[1694011152572,0.00416128,25625.0,25624.0,0.805518]
[1694011152782,0.00416128,25625.0,25624.0,2.366554]
[1694011153845,0.00616128,25625.0,25624.0,2.389554]
[1694011154047,0.00416128,25625.0,25624.0,1.584036]
[1694011154253,0.00516128,25625.0,25624.0,1.595036]
[1694011154672,0.00380837,25625.0,25624.0,0.023]
[1694011155110,0.14428236,25625.0,25624.0,0.048]
[1694011155318,0.92476936,25625.0,25624.0,0.048]
[1694011155530,1.88988835,25625.0,25624.0,0.048]
[1694011155736,2.13805963,25625.0,25624.0,0.048]
[1694011155943,1.31141857,25625.0,25624.0,0.048]
[1694011156152,0.1442863,25625.0,25624.0,0.048]
[1694011156363,0.1442863,25625.0,25624.0,0.828518]
[1694011156570,0.17367058,25625.0,25624.0,0.828518]
[1694011157234,0.17367058,25625.0,25624.0,1.609036]
[1694011157441,0.26600474,25625.0,25624.0,1.609036]
[1694011158927,0.26601129,25625.0,25624.0,1.609036]
[1694011159135,0.12753336,25625.0,25624.0,1.609036]
[1694011159358,0.12753336,25625.0,25624.0,3.170072]
[1694011159565,0.12753336,25625.0,25624.0,3.291972]
[1694011159989,0.03519265,25625.0,25624.0,3.6211692]
[1694011160193,0.03519265,25625.0,25624.0,3.291972]
[1694011164276,0.03338428,25625.0,25624.0,3.47016363]
[1694011164506,0.03338428,25625.0,25624.0,3.77016363]
[1694011164918,0.004,25625.0,25624.0,3.77016363]
[1694011165127,0.004,25625.0,25624.0,3.69016363]
[1694011165332,0.004,25625.0,25624.0,3.591972]
[1694011165535,0.03337925,25625.0,25624.0,3.591972]
[1694011166970,0.03337925,25625.0,25624.0,4.66535417]
[1694011167328,0.03337925,25625.0,25624.0,4.3017089]
[1694011167329,0.004,25625.0,25624.0,4.3017089]
[1694011168776,0.09234071,25629.0,25628.0,0.09819163]
[1694011168972,0.13847793,25630.0,25628.0,4.96337501]
[1694011168973,0.09234071,25630.0,25628.0,4.96337501]
[1694011169172,0.09234071,25630.0,25629.0,0.50854527]
[1694011169375,0.09234071,25630.0,25629.0,3.65300527]
[1694011169574,0.23081864,25631.0,25629.0,3.65300527]
[1694011169942,0.23081864,25631.0,25630.0,0.1219]
[1694011170141,0.23081864,25631.0,25630.0,3.26624]
[1694011170756,0.09234071,25631.0,25630.0,3.26624]
[1694011171509,0.12178344,25631.0,25630.0,3.26624]
[1694011172486,0.12178344,25631.0,25630.0,3.28524]
[1694011172895,0.12178344,25631.0,25630.0,3.31024]
[1694011173301,0.02944273,25631.0,25630.0,3.31024]
[1694011173511,0.2602714,25631.0,25630.0,3.31024]
[1694011174537,0.12179347,25631.0,25630.0,3.31024]
[1694011175353,0.2602714,25631.0,25630.0,3.16534]
[1694011175557,0.2602714,25631.0,25630.0,2.385005]
[1694011176418,0.2602714,25631.0,25630.0,3.16534]
[1694011176656,0.2602714,25631.0,25630.0,3.28724]
[1694011177071,0.12179347,25631.0,25630.0,3.28724]
[1694011180800,0.12179347,25631.0,25630.0,2.506905]
[1694011181760,0.12360184,25631.0,25630.0,2.385005]
[1694011182682,0.12360184,25631.0,25630.0,0.824335]
[1694011182886,0.12360184,25631.0,25630.0,0.044]
[1694011182887,1.02360184,25631.0,25630.0,0.044]
[1694011183102,1.94238477,25631.0,25630.0,0.044]
[1694011183335,2.72265109,25631.0,25630.0,0.044]
[1694011183549,3.65881137,25631.0,25630.0,0.044]
[1694011183764,3.78071137,25631.0,25630.0,0.044]
[1694011184397,3.78071137,25631.0,25630.0,0.025]
[1694011184812,0.9362511,25631.0,25630.0,0.026]
[1694011185022,1.35156887,25631.0,25630.0,0.806335]
[1694011185236,1.11583505,25631.0,25630.0,2.366005]
[1694011185654,1.12083505,25631.0,25630.0,2.367005]
[1694011186467,0.22083505,25631.0,25630.0,2.367005]
[1694011186699,0.22083505,25631.0,25630.0,3.28554521]
[1694011186700,0.26700371,25631.0,25630.0,3.28554521]
[1694011186916,0.12855296,25631.0,25630.0,3.24424]
[1694011187121,0.12674459,25631.0,25630.0,3.24424]
[1694011187641,0.03544273,25631.0,25630.0,3.24424]
[1694011187973,0.12355296,25631.0,25630.0,3.24324]
[1694011188176,0.26800371,25631.0,25630.0,3.24424]
[1694011188411,0.26800371,25631.0,25630.0,0.781335]
[1694011188412,0.17570185,25631.0,25630.0,0.781335]
[1694011188618,0.3542858,25631.0,25630.0,0.780335]
[1694011188826,0.3542858,25631.0,25630.0,0.782335]
[1694011189050,0.3542858,25631.0,25630.0,1.56267]
[1694011189255,0.3542858,25631.0,25630.0,1.56067]
[1694011189435,0.3542858,25631.0,25630.0,0.780335]
[1694011189671,0.22083505,25631.0,25630.0,0.780335]
[1694011190508,1.23187387,25631.0,25630.0,0.009]
[1694011190709,1.82759492,25631.0,25630.0,0.009]
[1694011190929,0.00180837,25629.0,25628.0,1.560745]
[1694011191135,0.0941502,25629.0,25627.0,1.560815]
[1694011191343,0.0941502,25629.0,25628.0,0.780396]
[1694011191579,0.23266295,25629.0,25628.0,0.780396]
[1694011192007,0.23266295,25629.0,25628.0,0.011]
[1694011192237,1.19759086,25629.0,25628.0,0.011]
[1694011192658,1.01290719,25629.0,25628.0,0.011]
[1694011192889,0.23254219,25629.0,25628.0,0.011]
[1694011193722,0.23254219,25629.0,25628.0,0.029]
[1694011195821,0.00180837,25629.0,25628.0,0.029]
[1694011196926,0.00180837,25629.0,25628.0,1.589792]
[1694011197141,0.23293874,25629.0,25628.0,1.589792]
[1694011197990,0.23293874,25629.0,25628.0,2.370188]
[1694011198170,0.41785529,25629.0,25628.0,2.370188]
[1694011198320,0.41785511,25629.0,25628.0,2.370188]
[1694011198531,0.23293874,25629.0,25628.0,2.370188]
[1694011198949,0.23293874,25629.0,25628.0,3.272484]
[1694011198950,0.18673671,25629.0,25628.0,3.272484]
[1694011199171,0.32543729,25629.0,25628.0,3.272484]
[1694011200937,0.14050895,25629.0,25628.0,3.272484]
[1694011201545,0.32543729,25629.0,25628.0,3.272484]
[1694011201749,0.21620451,25629.0,25628.0,3.272484]
[1694011201955,0.35491567,25629.0,25628.0,3.272484]
[1694011202369,0.21620451,25629.0,25628.0,3.272484]
[1694011202833,0.21620451,25629.0,25628.0,3.150584]
[1694011203046,0.21620451,25629.0,25628.0,1.589792]
[1694011203423,0.21620451,25629.0,25628.0,2.370188]
[1694011203848,0.44733488,25629.0,25628.0,2.370188]
[1694011205193,0.21620451,25629.0,25628.0,3.272484]
[1694011205396,0.21439614,25629.0,25628.0,3.272484]
[1694011205583,0.21439614,25629.0,25628.0,3.98212927]
[1694011205584,0.12200566,25629.0,25628.0,3.98212927]
[1694011205739,0.0294678,25629.0,25628.0,3.98212927]
[1694011205940,0.09253786,25630.0,25629.0,0.17819163]
[1694011206143,0.32371433,25631.0,25629.0,0.17819163]
[1694011206144,0.09253786,25631.0,25629.0,4.51784217]
[1694011206348,0.09253786,25631.0,25630.0,0.80854527]
[1694011206546,0.09253786,25631.0,25630.0,3.95288527]
[1694011206749,0.09253786,25631.0,25630.0,4.1310769]
[1694011206996,0.12717666,25631.0,25630.0,4.1310769]
[1694011207216,0.12717666,25631.0,25630.0,4.51772217]
[1694011207451,0.0346388,25631.0,25630.0,4.51772217]
[1694011208114,0.09253786,25632.0,25630.0,4.51772217]
[1694011208301,0.09253786,25632.0,25631.0,0.1449]
[1694011208513,0.23132385,25632.0,25631.0,3.95276527]
[1694011208749,0.12728728,25632.0,25631.0,4.33941054]
[1694011209582,0.12728728,25632.0,25631.0,4.36641054]
[1694011209788,0.09253786,25632.0,25631.0,4.36641054]
[1694011210620,0.09253786,25632.0,25631.0,4.54460217]
[1694011212702,0.09253786,25632.0,25631.0,4.1579569]
[1694011212906,0.23132385,25632.0,25631.0,4.1579569]
[1694011213115,0.13878599,25632.0,25631.0,3.74831163]
[1694011213322,0.17356518,25632.0,25631.0,3.50822]
[1694011213525,0.35849352,25632.0,25631.0,3.44822]
[1694011213733,0.21970753,25632.0,25631.0,2.367915]
[1694011213948,0.26590956,25632.0,25631.0,2.367915]
[1694011214155,0.26590956,25632.0,25631.0,1.58761]
[1694011214361,0.26590956,25632.0,25631.0,3.14822]
[1694011214563,0.26590956,25632.0,25631.0,2.367915]
[1694011214976,0.26771793,25632.0,25631.0,2.367915]
[1694011215196,0.03477919,25632.0,25631.0,2.367915]
[1694011215399,0.03658756,25632.0,25631.0,2.367915]
[1694011218136,3.16072882,25632.0,25631.0,0.027]
[1694011218347,3.05340858,25632.0,25631.0,0.027]
[1694011218552,1.49286058,25632.0,25631.0,0.027]
[1694011218930,0.00180837,25631.0,25630.0,0.78033]
[1694011219135,0.2794322,25631.0,25630.0,0.78033]
[1694011219339,0.2794322,25631.0,25630.0,1.560665]
[1694011219542,0.31411035,25631.0,25630.0,2.341]
[1694011219695,0.03648652,25631.0,25630.0,2.341]
[1694011219894,0.03648652,25631.0,25630.0,2.58212359]
[1694011220097,0.03648652,25631.0,25630.0,1.560665]
[1694011221509,0.03648652,25631.0,25630.0,0.78033]
[1694011221714,0.00180837,25630.0,25629.0,1.560694]
[1694011222125,0.00180837,25630.0,25628.0,1.560764]
[1694011222331,0.23321867,25629.0,25628.0,0.780381]
[1694011222555,0.00180837,25628.0,25627.0,1.56084]
[1694011222743,0.00180837,25628.0,25627.0,2.341266]
[1694011222744,0.23321079,25628.0,25627.0,2.341266]
[1694011225942,0.23321079,25628.0,25627.0,2.366266]
[1694011226152,1.1817282,25628.0,25627.0,0.044]
[1694011226361,1.9621242,25628.0,25627.0,0.044]
[1694011226592,1.9621242,25628.0,25624.0,0.780494]
[1694011226593,2.49678296,25628.0,25624.0,0.780494]
[1694011226798,0.41823057,25625.0,25624.0,1.561]
[1694011227421,0.41823283,25625.0,25624.0,1.561]
[1694011227782,0.18687593,25625.0,25624.0,1.561]
[1694011228807,0.32562823,25625.0,25624.0,1.561]
[1694011229590,0.32562823,25625.0,25624.0,0.025]
[1694011229789,1.74784993,25625.0,25624.0,0.025]
[1694011230018,1.97920683,25625.0,25624.0,0.025]
[1694011230634,1.19871983,25625.0,25624.0,0.045]
[1694011230835,0.96736293,25625.0,25624.0,0.045]
[1694011231065,1.19871983,25625.0,25624.0,0.045]
[1694011231450,1.23322479,25625.0,25624.0,0.045]
[1694011231604,1.04815723,25625.0,25624.0,0.045]
[1694011231798,1.23308733,25625.0,25624.0,0.045]
[1694011232000,0.45260033,25625.0,25624.0,0.045]
[1694011232407,0.22124343,25625.0,25624.0,0.045]
[1694011232811,0.35992745,25625.0,25624.0,0.045]
[1694011233012,0.17499735,25625.0,25624.0,0.045]
[1694011234253,0.17499735,25625.0,25624.0,0.825518]
[1694011234682,0.17499735,25625.0,25624.0,0.845029]
[1694011235312,0.26745526,25625.0,25624.0,1.625547]
[1694011235513,0.12877124,25625.0,25624.0,1.625547]
[1694011236694,0.12877124,25625.0,25624.0,2.406065]
[1694011236962,0.12877124,25625.0,25624.0,3.186583]
[1694011237164,0.03631333,25625.0,25624.0,3.308483]
[1694011237377,0.03631333,25625.0,25624.0,1.625547]
[1694011237378,0.12877124,25625.0,25624.0,1.625547]
[1694011237923,0.12877124,25625.0,25624.0,0.064511]
[1694011238919,0.90925824,25625.0,25624.0,0.064511]
[1694011239120,1.04794226,25625.0,25624.0,0.064511]
[1694011239319,1.73597135,25625.0,25624.0,0.064511]
[1694011239523,2.90310362,25625.0,25624.0,0.064511]
[1694011239721,2.9493497,25625.0,25624.0,0.064511]
[1694011240129,3.8517367,25625.0,25624.0,0.064511]
[1694011240580,3.8517367,25625.0,25624.0,0.044511]
[1694011240792,4.1630936,25625.0,25624.0,0.019511]
[1694011241008,4.16994053,25625.0,25624.0,0.021511]
[1694011241215,4.16994053,25625.0,25624.0,0.022511]
[1694011241216,4.17294053,25625.0,25624.0,0.022511]
[1694011241639,4.16594053,25625.0,25624.0,0.020511]
[1694011241859,3.9781635,25625.0,25624.0,0.019511]
[1694011242065,4.16592234,25625.0,25624.0,0.020511]
[1694011242297,3.9811635,25625.0,25624.0,0.251711]
[1694011242491,4.16591172,25625.0,25624.0,0.251711]
[1694011242698,3.93455482,25625.0,25624.0,0.251711]
[1694011243381,3.94155482,25625.0,25624.0,0.253711]
[1694011243612,4.17291172,25625.0,25624.0,0.253711]
[1694011243746,3.94155482,25625.0,25624.0,0.253711]
[1694011243975,3.96155482,25625.0,25624.0,0.253711]
[1694011244150,3.96155482,25625.0,25624.0,0.05838881]
[1694011244968,4.10005242,25625.0,25624.0,0.05838881]
[1694011245386,3.9153042,25625.0,25624.0,0.05838881]
[1694011245805,4.10005242,25625.0,25624.0,0.05838881]
[1694011246026,3.9153042,25625.0,25624.0,0.05838881]
[1694011246427,4.10005242,25625.0,25624.0,0.05838881]
[1694011246686,3.9153042,25625.0,25624.0,0.05838881]
[1694011247497,3.8953042,25625.0,25624.0,0.05838881]
[1694011247674,3.8953042,25625.0,25624.0,0.05338881]
[1694011248256,3.98761795,25625.0,25624.0,0.05338881]
[1694011248895,3.84912035,25625.0,25624.0,0.05338881]
[1694011250131,4.01126035,25625.0,25624.0,0.05338881]
[1694011250332,3.99512035,25625.0,25624.0,0.05338881]
[1694011250536,4.82912035,25625.0,25624.0,0.05338881]
[1694011251158,4.89452035,25625.0,25624.0,0.05338881]
[1694011251362,4.89524035,25625.0,25624.0,0.05338881]
[1694011251576,4.89398035,25625.0,25624.0,0.05338881]
[1694011251786,4.82912035,25625.0,25624.0,0.05338881]
[1694011252187,4.96761795,25625.0,25624.0,0.05338881]
[1694011252624,5.03379795,25625.0,25624.0,0.05338881]
[1694011252818,5.03349795,25625.0,25624.0,0.05338881]
[1694011253049,5.03331795,25625.0,25624.0,0.05338881]
[1694011253250,4.9506642,25625.0,25624.0,0.05338881]
[1694011253465,4.9534242,25625.0,25624.0,0.05338881]
[1694011253680,5.7358312,25625.0,25624.0,0.05338881]
[1694011253858,5.7399712,25625.0,25624.0,0.05338881]
[1694011254051,5.92585942,25625.0,25624.0,0.05338881]
[1694011254303,5.92393942,25625.0,25624.0,0.05338881]
[1694011254509,5.91601942,25625.0,25624.0,0.05338881]
[1694011254662,5.91559942,25625.0,25624.0,0.05338881]
[1694011254861,5.91145942,25625.0,25624.0,0.05338881]
[1694011255172,5.90971942,25625.0,25624.0,0.05338881]
[1694011255379,5.84053942,25625.0,25624.0,0.05338881]
[1694011255587,5.6557912,25625.0,25624.0,0.05338881]
[1694011255782,3.3143302,25625.0,25624.0,0.05338881]
[1694011255999,4.1871368,25625.0,25624.0,0.05338881]
[1694011256125,4.0486392,25625.0,25624.0,0.05338881]
[1694011256324,4.0486392,25625.0,25624.0,2.39494281]
[1694011256325,1.4252782,25625.0,25624.0,2.39494281]
[1694011256726,0.94631333,25625.0,25624.0,3.17546081]
[1694011256926,0.04631333,25625.0,25624.0,3.29736081]
[1694011257337,0.04450496,25625.0,25624.0,3.29736081]
[1694011257548,0.04450496,25625.0,25624.0,4.19977881]
[1694011257749,0.03057179,25625.0,25624.0,4.19977881]
[1694011257949,0.03057179,25625.0,25624.0,4.07787881]
[1694011258176,0.00180837,25627.0,25624.0,4.46452408]
[1694011258378,0.00180837,25627.0,25626.0,0.1219]
[1694011258552,0.00180837,25627.0,25626.0,2.463271]
[1694011258968,0.00180837,25627.0,25626.0,3.243728]
[1694011259111,0.00180837,25627.0,25626.0,3.360142]
[1694011259924,0.00180837,25627.0,25626.0,3.243728]
[1694011260554,0.00180837,25628.0,25626.0,3.243728]
[1694011260756,0.00180837,25628.0,25627.0,0.1219]
[1694011260960,0.00180837,25628.0,25627.0,2.463178]
[1694011261504,0.0923196,25630.0,25627.0,2.463178]
[1694011261633,0.02950007,25628.0,25627.0,2.463178]
[1694011261839,0.0923196,25630.0,25627.0,2.463178]
[1694011262186,0.0923196,25630.0,25627.0,2.466178]
[1694011262601,0.0923196,25630.0,25627.0,1.572852]
[1694011262602,0.9,25629.0,25627.0,1.572852]
[1694011262805,0.00180837,25628.0,25627.0,1.563852]
[1694011263043,0.00180837,25628.0,25627.0,0.783426]
[1694011263225,0.09412797,25628.0,25627.0,0.783426]
[1694011263373,0.00180837,25628.0,25627.0,1.560852]
[1694011263578,0.00180837,25628.0,25627.0,2.463178]
[1694011263779,0.00180837,25628.0,25627.0,2.464178]
[1694011264406,0.1384976,25630.0,25627.0,2.463178]
[1694011264407,0.00180837,25630.0,25627.0,2.463178]
[1694011264582,0.00180837,25630.0,25629.0,0.1219]
[1694011264805,0.00180837,25630.0,25629.0,2.341095]
[1694011264806,0.00280837,25630.0,25629.0,2.341095]
[1694011265023,0.00180837,25630.0,25629.0,2.341095]
[1694011265397,0.03133394,25630.0,25629.0,2.341095]
[1694011266005,0.03133394,25630.0,25629.0,2.7882311]
[1694011266222,0.03133394,25630.0,25629.0,2.462995]
[1694011266782,0.12465354,25630.0,25629.0,2.462995]
[1694011267140,0.03233394,25630.0,25629.0,3.24436]
[1694011268352,0.03052557,25630.0,25629.0,3.24436]
[1694011270442,0.02952557,25630.0,25629.0,3.24436]
[1694011270597,0.02952557,25630.0,25629.0,3.24336]
[1694011270820,0.02952557,25630.0,25629.0,3.24536]
[1694011271559,0.26034277,25630.0,25629.0,3.24436]
[1694011271724,0.16802317,25630.0,25629.0,2.342095]
[1694011272162,0.16819673,25630.0,25629.0,2.342095]
[1694011272333,0.16819673,25630.0,25629.0,1.56173]
[1694011272536,0.16819673,25630.0,25629.0,2.342095]
[1694011272771,0.16819673,25630.0,25629.0,1.56173]
[1694011272954,0.16819673,25630.0,25629.0,2.342095]
[1694011273386,0.16819673,25630.0,25629.0,1.56173]
[1694011273788,0.16819673,25630.0,25629.0,2.342095]
[1694011274525,0.16819673,25630.0,25629.0,1.56173]
[1694011276194,0.35309161,25630.0,25629.0,1.56173]
[1694011276412,0.35309161,25630.0,25629.0,0.781365]
[1694011276618,0.35309161,25630.0,25629.0,1.56173]
[1694011276828,0.21442045,25630.0,25629.0,1.56173]
[1694011277046,0.16814485,25630.0,25629.0,3.12246]
[1694011277253,0.12194212,25630.0,25629.0,3.12246]
[1694011278089,0.12194212,25630.0,25629.0,3.24812363]
[1694011278535,0.12194212,25630.0,25629.0,3.12246]
[1694011278737,0.12194212,25630.0,25629.0,3.24436]
[1694011279356,0.02952557,25630.0,25629.0,3.24436]
[1694011280799,0.2328442,25632.0,25629.0,3.24436]
[1694011281004,0.2328442,25632.0,25631.0,0.1219]
[1694011281207,0.2328442,25632.0,25631.0,3.24312]
[1694011281819,0.09422492,25632.0,25631.0,3.24312]
[1694011282828,0.14042765,25632.0,25631.0,3.24312]
[1694011283029,0.14142765,25632.0,25631.0,3.24412]
[1694011283436,0.32632253,25632.0,25631.0,2.341915]
[1694011284767,0.32132253,25632.0,25631.0,2.343915]
[1694011284927,0.13642765,25632.0,25631.0,2.343915]
[1694011286886,0.13642765,25632.0,25631.0,2.14864615]
[1694011287115,0.093354,25632.0,25631.0,2.92895115]
[1694011287312,0.093354,25632.0,25631.0,3.05085115]
[1694011287313,0.09516237,25632.0,25631.0,3.05085115]
[1694011287679,0.00280837,25632.0,25631.0,3.05085115]
[1694011287881,0.00280837,25632.0,25631.0,3.24512]
[1694011288306,0.001,25632.0,25631.0,3.24512]
[1694011288748,0.001,25632.0,25631.0,2.342915]
[1694011291715,0.03052142,25632.0,25631.0,2.342915]
[1694011292529,0.03232979,25632.0,25631.0,2.342915]
[1694011294934,0.12468379,25632.0,25631.0,2.342915]
[1694011296956,0.11468379,25632.0,25631.0,2.342915]
[1694011297361,0.12298141,25632.0,25631.0,2.342915]
[1694011297563,0.12478978,25632.0,25631.0,3.12322]
[1694011297948,0.12478978,25632.0,25631.0,2.342915]
[1694011298824,0.35592279,25632.0,25631.0,2.342915]
[1694011299866,0.21733066,25632.0,25631.0,2.342915]
[1694011300399,0.20733066,25632.0,25631.0,2.342915]
[1694011300826,0.26324188,25632.0,25631.0,2.39430381]
[1694011301995,0.03212328,25632.0,25631.0,2.39430381]
[1694011303069,0.447203,25632.0,25631.0,3.7808179]
[1694011303279,0.26193026,25632.0,25631.0,4.03580506]
[1694011303489,0.12296445,25632.0,25631.0,4.21399669]
[1694011303750,0.12296445,25632.0,25631.0,4.55288379]
[1694011303961,0.09264954,25633.0,25632.0,0.17819163]
[1694011304191,0.23161535,25633.0,25632.0,4.1308329]
[1694011304400,0.13896581,25633.0,25632.0,4.1308329]
[1694011306215,0.13896581,25633.0,25632.0,3.72118763]
[1694011306413,0.13896581,25633.0,25632.0,3.74618763]
[1694011306911,0.35255553,25633.0,25632.0,3.77118763]
[1694011307114,0.21358972,25633.0,25632.0,3.77118763]
[1694011307517,0.35250653,25633.0,25632.0,3.77118763]
[1694011307721,0.35250845,25633.0,25632.0,3.77118763]
[1694011307876,0.35250845,25633.0,25632.0,3.99868326]
[1694011308073,0.35250845,25633.0,25632.0,4.02168326]
[1694011308283,0.21358972,25633.0,25632.0,3.77418763]
[1694011308486,0.26171642,25633.0,25632.0,1.610548]
[1694011308684,0.26171642,25633.0,25632.0,2.390822]
[1694011308886,0.03011321,25633.0,25632.0,2.390822]
[1694011309595,0.03011321,25633.0,25632.0,1.610548]
[1694011309792,0.30745553,25633.0,25632.0,0.05]
[1694011310000,0.30745553,25633.0,25632.0,0.025]
[1694011310267,0.30945553,25633.0,25632.0,0.001]
[1694011310487,0.31245553,25633.0,25632.0,0.001]
[1694011310684,0.30945553,25633.0,25632.0,0.001]
[1694011311097,0.31245553,25633.0,25632.0,0.782274]
[1694011311502,0.31245553,25633.0,25632.0,0.002]
[1694011311907,0.03311321,25633.0,25632.0,0.001]
[1694011312135,0.03511321,25633.0,25632.0,0.003]
[1694011312691,0.81535721,25633.0,25632.0,0.003]
[1694011312904,0.84727738,25633.0,25632.0,0.003]
[1694011313644,0.06703338,25633.0,25632.0,0.003]
[1694011313867,0.03511321,25633.0,25632.0,0.003]
[1694011314260,0.06703338,25633.0,25632.0,0.003]
[1694011314666,0.03511321,25633.0,25632.0,0.003]
[1694011314876,0.34712385,25633.0,25632.0,0.003]
[1694011315492,3.07450112,25633.0,25632.0,0.003]
[1694011315698,3.22832129,25633.0,25632.0,0.003]
[1694011315901,3.69655465,25633.0,25632.0,0.003]
[1694011317167,2.91631065,25633.0,25632.0,0.003]
[1694011320211,0.57557865,25633.0,25632.0,0.003]
[1694011320432,1.63429593,25633.0,25632.0,0.003]
[1694011320840,3.2267041,25633.0,25632.0,0.003]
[1694011321041,4.9090921,25633.0,25632.0,0.003]
[1694011321247,4.59655465,25633.0,25632.0,0.003]
[1694011321661,4.83563465,25633.0,25632.0,0.003]
[1694011321871,4.88231094,25633.0,25632.0,0.003]
[1694011322076,4.81775094,25633.0,25632.0,0.003]
[1694011322479,4.81775094,25633.0,25632.0,0.001]
[1694011322480,3.91575094,25633.0,25632.0,0.001]
[1694011322712,3.91360694,25633.0,25632.0,0.001]
[1694011323297,4.03550694,25633.0,25632.0,0.001]
[1694011323496,4.10492694,25633.0,25632.0,0.001]
[1694011323838,4.88559094,25633.0,25632.0,0.001]
[1694011324041,4.91695094,25633.0,25632.0,0.003]
[1694011324246,4.91743094,25633.0,25632.0,0.003]
[1694011324454,4.91677094,25633.0,25632.0,0.003]
[1694011324622,0.6,25632.0,25631.0,0.05138881]
[1694011325003,4.26336981,25632.0,25631.0,0.05138881]
[1694011325414,4.29024832,25632.0,25631.0,0.05138881]
[1694011325785,4.31224832,25632.0,25631.0,0.05338881]
[1694011326838,3.53197432,25632.0,25631.0,0.05338881]
[1694011327042,2.94222764,25632.0,25631.0,0.05338881]
[1694011327396,4.31224832,25632.0,25631.0,0.05338881]
[1694011327599,3.53197432,25632.0,25631.0,0.05338881]
[1694011327980,3.41007432,25632.0,25631.0,0.05338881]
[1694011328178,3.41007432,25632.0,25631.0,0.05538881]
[1694011328179,4.20834832,25632.0,25631.0,0.05538881]
[1694011328377,3.42807432,25632.0,25631.0,0.05538881]
[1694011331721,3.74032794,25632.0,25631.0,0.05538881]
[1694011333962,3.74032794,25632.0,25628.0,1.42086159]
[1694011334172,0.27935116,25629.0,25628.0,2.20124559]
[1694011334386,0.27935116,25629.0,25628.0,1.560767]
[1694011335211,0.27935116,25629.0,25628.0,1.562767]
[1694011335454,0.27935116,25629.0,25628.0,1.564767]
[1694011335678,0.27935116,25629.0,25628.0,0.780383]
[1694011335885,0.27935116,25629.0,25627.0,1.61894809]
[1694011336091,0.29935116,25629.0,25628.0,0.002]
[1694011336297,0.32335116,25629.0,25628.0,0.004]
[1694011336509,2.00371616,25629.0,25628.0,0.004]
[1694011337556,2.76008116,25629.0,25628.0,0.002]
[1694011337780,3.68141935,25629.0,25628.0,0.002]
[1694011337978,3.70541935,25629.0,25628.0,0.002]
[1694011338184,4.60768435,25629.0,25628.0,0.002]
[1694011338591,0.00180837,25626.0,25624.0,0.939015]
[1694011338811,0.41624887,25625.0,25624.0,0.780515]
[1694011339013,0.23124937,25625.0,25624.0,0.780515]
[1694011339442,0.41623587,25625.0,25624.0,0.780515]
[1694011339856,0.41623587,25625.0,25623.0,0.0530724]
[1694011340060,1.08497979,25624.0,25623.0,0.0530724]
[1694011340297,1.08497979,25624.0,25623.0,0.8336184]
[1694011340486,1.22370363,25624.0,25623.0,1.6141664]
[1694011341955,1.22470363,25624.0,25623.0,0.792546]
[1694011342149,1.226512,25624.0,25623.0,0.012]
[1694011342360,1.52070301,25624.0,25623.0,0.012]
[1694011342576,4.53342564,25624.0,25623.0,0.019]
[1694011342773,3.75290764,25624.0,25623.0,0.019]
[1694011343178,3.75290764,25624.0,25623.0,0.012]
[1694011343808,4.53342564,25624.0,25623.0,0.012]
[1694011345484,4.76455459,25624.0,25620.0,0.946431]
[1694011345701,0.00180837,25621.0,25620.0,2.46726455]
[1694011347299,0.00280837,25621.0,25620.0,2.48226455]
[1694011347715,0.00280837,25621.0,25620.0,2.356977]
[1694011347910,0.00280837,25621.0,25620.0,2.60364709]
[1694011351505,0.02795021,25621.0,25620.0,2.60364709]
[1694011351907,0.02995021,25621.0,25620.0,2.62464709]
[1694011353211,0.02995021,25621.0,25620.0,3.40528709]
[1694011355179,0.02995021,25621.0,25620.0,2.62464709]
[1694011358721,0.02995021,25621.0,25620.0,0.28277009]
[1694011358925,0.02995021,25621.0,25620.0,1.06341009]
[1694011359423,0.02995021,25621.0,25620.0,1.84405009]
[1694011359825,0.02995021,25621.0,25620.0,0.28277009]
[1694011360055,0.81055921,25621.0,25620.0,0.0361]
[1694011360712,0.02995021,25621.0,25620.0,0.81674]
[1694011361307,0.02995021,25621.0,25620.0,1.59738]
[1694011361853,0.02995021,25621.0,25620.0,0.81674]
[1694011363560,0.12239814,25621.0,25620.0,0.0361]
[1694011363766,2.58361614,25621.0,25620.0,0.0361]
[1694011365218,1.80300714,25621.0,25620.0,0.0361]
[1694011365637,1.94167904,25621.0,25620.0,0.0361]
[1694011366256,3.96521834,25621.0,25620.0,0.0361]
[1694011366460,4.10400733,25621.0,25620.0,0.0361]
[1694011366837,3.18460934,25621.0,25620.0,0.0361]